fUSD/lending_fUSD_20250217
["ID","MTS","AMOUNT","RATE_DAILY","PERIOD"]
[353330852,1739771443230,-500.0,0.000108,2]
[353330853,1739771443239,-700.0,0.000108,3]
[353330854,1739771443248,-493.93,0.000108,2]
[353330855,1739771443257,-1500.0,0.000109,3]
[353330856,1739771443267,-184.33406832,0.000109,2]
[353330857,1739771443276,-1000.0,0.00010951,2]
[353330858,1739771443285,-1525.83635065,0.00011,2]
[353330859,1739771443295,-2822.25828487,0.00011,2]
[353330861,1739771443304,-183.87,0.00011073,2]
[353330863,1739771443313,-5301.62258138,0.00011099,2]
[353330865,1739771443322,-5301.62258132,0.00011099,2]
[353330867,1739771443333,-5301.62258132,0.00011099,2]
[353330869,1739771443342,-3858.90492326,0.00011099,2]
[353330870,1739771443351,-3858.90492319,0.00011099,2]
[353330871,1739771443361,-3858.90492319,0.00011099,2]
[353330872,1739771443370,-3858.90492319,0.00011099,2]
[353330873,1739771443379,-3858.90492319,0.00011226,2]
[353330874,1739771443389,-150.53,0.00011299,2]
[353330875,1739771443398,-150.92,0.000113,2]
[353330876,1739771443407,-301.4937925,0.00011314,2]
[353330877,1739771443416,-1000.0,0.00011321,2]
[353330878,1739771443425,-5301.62258132,0.00011404,2]
[353330879,1739771443434,-292.53,0.00011741,2]
[353330880,1739771443443,-685.61,0.00011822,2]
[353330881,1739771443452,-439.11,0.00011822,2]
[353330882,1739771443462,-439.11,0.00011822,2]
[353330883,1739771443471,-439.11,0.00011822,2]
[353330884,1739771443480,-439.11,0.00011822,2]
[353330885,1739771443489,-1426.327,0.00011843,2]
[353330886,1739771443498,-3858.90492319,0.00011848,2]
[353330887,1739771443507,-439.11,0.00011856,2]
[353330888,1739771443516,-986.71,0.00011856,2]
[353330889,1739771443525,-439.11,0.00011856,2]
[353330890,1739771443534,-300.0,0.00011856,2]
[353330891,1739771443544,-986.71,0.00011856,2]
[353330892,1739771443554,-986.71,0.00011856,2]
[353330893,1739771443564,-1905.23,0.00011858,2]
[353330894,1739771443574,-5301.62258132,0.00011893,2]
[353330895,1739771443584,-600.0,0.00012,2]
[353330896,1739771443594,-150.0,0.00012152,2]
[353330897,1739771443603,-439.11,0.00012156,2]
[353330898,1739771443612,-150.0,0.00012156,2]
[353330899,1739771443621,-1000.0,0.00012168,2]
[353330900,1739771443631,-183.90323778,0.00012169,2]
[353330901,1739771443640,-150.0,0.00012269,2]
[353330902,1739771443649,-183.87,0.00012304,2]
[353330903,1739771443658,-1011.92539287,0.00012322,2]
[353330904,1739771443667,-150.0,0.00012379,2]
[353330905,1739771443676,-5301.62258132,0.00012382,2]
[353330906,1739771443685,-3858.90492319,0.00012471,2]
[353330907,1739771443694,-2025.0,0.00012501,2]
[353330908,1739771443703,-150.0,0.00012501,2]
[353330909,1739771443712,-638.0,0.00012501,2]
[353330910,1739771443721,-569.0,0.00012501,2]
[353330911,1739771443731,-1786.0,0.00012501,2]
[353330912,1739771443740,-2957.0,0.00012501,2]
[353330913,1739771443750,-1266.0,0.00012501,2]
[353330914,1739771443759,-908.0,0.00012501,2]
[353330915,1739771443768,-783.0,0.00012501,2]
[353330916,1739771443777,-4027.0,0.00012501,2]
[353330917,1739771443787,-539.0,0.00012501,2]
[353330918,1739771443796,-3917.0,0.00012501,2]
[353330919,1739771443805,-150.0,0.00012501,2]
[353330920,1739771443815,-1008.0,0.00012501,2]
[353330921,1739771443828,-1000.0,0.00012538,2]
[353330922,1739771443837,-150.0,0.00012545,2]
[353330923,1739771443847,-439.11,0.00012644,2]
[353330924,1739771443856,-437.34,0.00012644,2]
[353330925,1739771443867,-150.0,0.00012651,2]
[353330926,1739771443876,-150.0,0.00012669,2]
[353330927,1739771443885,-2007.0,0.00012687,2]
[353330928,1739771443896,-935.71,0.00012701,2]
[353330929,1739771443905,-150.0,0.00012707,2]
[353330930,1739771443915,-169.33,0.00012817,2]
[353330931,1739771444098,-150.0,0.0001287,2]
[353330932,1739771444112,-5301.62258132,0.00012871,2]
[353330933,1739771444122,-151.0,0.0001289,2]
[353330934,1739771444131,-4550.0,0.0001289,2]
[353330935,1739771444141,-4550.0,0.0001289,2]
[353330936,1739771444150,-151.0,0.0001289,2]
[353330937,1739771444159,-151.0,0.0001289,2]
[353330938,1739771444168,-151.0,0.0001289,2]
[353330939,1739771444178,-293.745252,0.0001289,2]
[353330940,1739771444188,-293.745252,0.0001289,2]
[353330941,1739771444197,-151.0,0.0001289,2]
[353330942,1739771444207,-151.0,0.0001289,2]
[353330943,1739771444216,-1546.248111,0.0001289,2]
[353330944,1739771444225,-1546.248111,0.0001289,2]
[353330945,1739771444235,-151.0,0.0001289,2]
[353330946,1739771444245,-1000.0,0.0001289,2]
[353330947,1739771444254,-1000.0,0.0001289,2]
[353330948,1739771444263,-1000.0,0.0001289,2]
[353330949,1739771444272,-1000.0,0.0001289,2]
[353330950,1739771444281,-1000.0,0.0001289,2]
[353330951,1739771444290,-1000.0,0.0001289,2]
[353330952,1739771444299,-1000.0,0.0001289,2]
[353330953,1739771444308,-1000.0,0.0001289,2]
[353330954,1739771444317,-1000.0,0.0001289,2]
[353330955,1739771444327,-1000.0,0.0001289,2]
[353330956,1739771444337,-1000.0,0.0001289,2]
[353330957,1739771444347,-1000.0,0.0001289,2]
[353330958,1739771444357,-1000.0,0.0001289,2]
[353330959,1739771444367,-1000.0,0.0001289,2]
[353330960,1739771444376,-1000.0,0.0001289,2]
[353330961,1739771444386,-1000.0,0.0001289,2]
[353330962,1739771444395,-1000.0,0.0001289,2]
[353330963,1739771444404,-1000.0,0.0001289,2]
[353330964,1739771444413,-1000.0,0.0001289,2]
[353330965,1739771444423,-1000.0,0.0001289,2]
[353330966,1739771444431,-1000.0,0.0001289,2]
[353330967,1739771444441,-1000.0,0.0001289,2]
[353330968,1739771444450,-1000.0,0.0001289,2]
[353330969,1739771444459,-1000.0,0.0001289,2]
[353330970,1739771444468,-1000.0,0.0001289,2]
[353330971,1739771444477,-1000.0,0.0001289,2]
[353330972,1739771444487,-1000.0,0.0001289,2]
[353330973,1739771444496,-1000.0,0.0001289,2]
[353330974,1739771444505,-1000.0,0.0001289,2]
[353330975,1739771444515,-1000.0,0.0001289,2]
[353330976,1739771444525,-1000.0,0.0001289,2]
[353330977,1739771444534,-1000.0,0.0001289,2]
[353330978,1739771444544,-1000.0,0.0001289,2]
[353330979,1739771444554,-1000.0,0.0001289,2]
[353330980,1739771444563,-1000.0,0.0001289,2]
[353330981,1739771444572,-1000.0,0.0001289,2]
[353330982,1739771444584,-1000.0,0.0001289,2]
[353330983,1739771444594,-1000.0,0.0001289,2]
[353330984,1739771444604,-1109.0,0.0001289,2]
[353330985,1739771444614,-150.0,0.00012896,2]
[353330986,1739771444623,-150.0,0.00012922,2]
[353330987,1739771444632,-150.0,0.00012996,2]
[353330988,1739771444642,-484.52,0.00013,2]
[353330989,1739771444651,-1828.58,0.00013,3]
[353330990,1739771444660,-150.0,0.0001302,2]
[353330991,1739771444670,-150.0,0.00013053,2]
[353330992,1739771444680,-150.0,0.00013061,2]
[353330993,1739771444690,-150.0,0.00013068,2]
[353330994,1739771444700,-3858.90492319,0.00013093,2]
[353330995,1739771444710,-150.0,0.00013106,2]
[353330996,1739771444719,-150.0,0.00013125,2]
[353330997,1739771444729,-3721.36644,0.0001319,2]
[353330998,1739771444738,-150.0,0.000132,2]
[353330999,1739771444748,-150.0,0.00013202,2]
[353331000,1739771444758,-292.53,0.00013208,2]
[353331001,1739771444768,-150.0,0.00013236,2]
[353331002,1739771444778,-150.0,0.00013245,2]
[353331003,1739771444787,-1000.0,0.00013291,2]
[353331004,1739771444797,-5553.0,0.000133,3]
[353331005,1739771444807,-150.0,0.00013319,2]
[353331006,1739771444817,-150.0,0.00013334,2]
[353331007,1739771444831,-5301.62258132,0.0001336,2]
[353331008,1739771444841,-1000.0,0.00013384,2]
[353331009,1739771444850,-150.0,0.0001341,2]
[353331010,1739771444859,-995.1153581,0.00013504,2]
[353331011,1739771444870,-150.0,0.00013533,2]
[353331012,1739771444880,-183.87,0.00013534,2]
[353331013,1739771444890,-150.0,0.00013555,2]
[353331014,1739771444901,-176.28048689,0.00013564,2]
[353331015,1739771444911,-150.0,0.00013574,2]
[353331016,1739771444920,-150.0,0.00013583,2]
[353331017,1739771444930,-1000.0,0.00013584,2]
[353331018,1739771444939,-150.0,0.00013588,2]
[353331019,1739771444949,-194.0,0.000136,3]
[353331020,1739771444958,-193.071,0.000136,2]
[353331021,1739771444968,-150.0,0.00013627,2]
[353331022,1739771444977,-150.0,0.00013628,2]
[353331023,1739771444987,-150.0,0.00013632,2]
[353331024,1739771444997,-1000.0,0.00013641,2]
[353331025,1739771445006,-150.0,0.00013662,2]
[353331026,1739771445016,-500.0,0.0001367,2]
[353331027,1739771445025,-2000.0,0.0001367,2]
[353331028,1739771445035,-500.0,0.0001367,2]
[353331029,1739771445045,-200.0,0.0001367,2]
[353331030,1739771445055,-9526.86310062,0.00013695,2]
[353331031,1739771445064,-428.51374405,0.00013695,2]
[353331032,1739771445073,-72412.32596411,0.00013695,2]
[353331037,1739771464289,947.0781,8.699e-05,2]
[353331038,1739771763425,-5553.0,0.000133,5]
[353331039,1739771830022,-1584.25,0.000148,31]
[353331040,1739771830046,-1584.25,0.000148,31]
[353331041,1739771830070,-1584.25,0.000148,31]
[353331042,1739771830095,-800.25,0.000148,31]
[353331043,1739771837587,-784.0,0.000148,31]
[353331044,1739771837612,-1584.25,0.000148,31]
[353331045,1739771837636,-1584.25,0.000148,31]
[353331046,1739771837661,-1584.25,0.000148,31]
[353331047,1739771837686,-1584.25,0.000148,31]
[353331048,1739771837710,-1584.25,0.000148,31]
[353331049,1739771837734,-1584.25,0.000148,31]
[353331050,1739771837758,-1584.25,0.000148,31]
[353331051,1739771837782,-1584.25,0.000148,31]
[353331052,1739771837806,-1584.25,0.000148,31]
[353331053,1739771837830,-1584.25,0.000148,31]
[353331054,1739771837854,-1584.25,0.000148,31]
[353331055,1739771837878,-1584.25,0.000148,31]
[353331056,1739771876946,1330.9,0.000148,31]
[353331057,1739771877017,1330.9,0.000148,31]
[353331058,1739771877065,1330.9,0.000148,31]
[353331059,1739771877139,1330.9,0.000148,31]
[353331060,1739771877229,1330.9,0.000148,31]
[353331061,1739771877260,1330.9,0.000148,31]
[353331062,1739771877308,1330.9,0.000148,31]
[353331063,1739771877340,1330.9,0.000148,31]
[353331064,1739771877386,1330.9,0.000148,31]
[353331065,1739771877508,1330.9,0.000148,31]
[353331066,1739771877566,1330.9,0.000148,31]
[353331067,1739771877596,1330.9,0.000148,31]
[353331068,1739771940426,-1847.83742478,0.00013697,3]
[353331069,1739771940452,-199.12845823,0.00013697,3]
[353331070,1739771940490,-1000.0,0.00013698,3]
[353331071,1739771940541,-2200.0,0.000137,5]
[353331072,1739771940595,-3000.0,0.000138,5]
[353331073,1739771940619,-1308.2309572,0.00013861,5]
[353331074,1739771940644,-1308.2309572,0.00013861,5]
[353331075,1739771940693,-3800.0,0.000139,5]
[353331076,1739771940716,-158.35923123,0.00013944,3]
[353331077,1739771940740,-665178.21297136,0.00013944,3]
[353331078,1739771990521,2009.9978,8.699e-05,2]
[353331079,1739772012700,2000.0,8.8e-05,2]
[353331115,1739772631826,-150.0,8.835e-05,2]
[353331116,1739772631835,-300.0,8.835e-05,2]
[353331117,1739772631845,-297.34999,8.836e-05,2]
[353331118,1739772631858,-1469.25156449,8.836e-05,2]
[353331119,1739772631875,-826.83337483,8.836e-05,2]
[353331120,1739772631886,-11536.91535681,8.836e-05,2]
[353331121,1739772631898,-1132.87600634,8.836e-05,2]
[353331122,1739772631916,-35701.35030753,8.836e-05,2]
[353331123,1739772631925,-3428.7511,8.836e-05,2]
[353331124,1739772631936,-3575.6404,8.836e-05,2]
[353331125,1739772631945,-611.44917524,8.851e-05,2]
[353331126,1739772631955,-500.0,8.851e-05,2]
[353331127,1739772631964,-2500.0,8.851e-05,2]
[353331128,1739772631974,-481.7313,8.973e-05,2]
[353331129,1739772631983,-200.0,9.719e-05,2]
[353331130,1739772631993,-150.0,9.736e-05,2]
[353331131,1739772632002,-150.0,9.825e-05,2]
[353331132,1739772632011,-153.88,0.00010137,2]
[353331133,1739772632021,-795.35,0.00010317,2]
[353331134,1739772632031,-602.34960039,0.00010699,2]
[353331135,1739772632040,-494.87,0.00010799,2]
[353331136,1739772632050,-501.39,0.00010799,2]
[353331137,1739772632059,-152.02,0.00011299,2]
[353331138,1739772632069,-150.62,0.00011299,2]
[353331145,1739772632251,-501.89,0.00011972,2]
[353331147,1739772632261,-200.0,0.00012157,2]
[353331149,1739772632274,-1000.0,0.0001226,2]
[353331151,1739772632285,-240.61,0.00012309,2]
[353331153,1739772632295,-926.18,0.00012362,2]
[353331155,1739772632304,-250.0,0.0001238,2]
[353331156,1739772632314,-150.0,0.00012518,2]
[353331158,1739772632324,-3917.0,0.00012518,2]
[353331160,1739772632333,-234.66,0.00012565,2]
[353331161,1739772632343,-795.35,0.00012581,2]
[353331163,1739772632353,-2000.0,0.00012678,4]
[353331165,1739772632362,-23900.0,0.00012787,2]
[353331166,1739772632372,-1908.711,0.00012787,2]
[353331168,1739772632381,-436.07,0.000131,2]
[353331170,1739772632391,-157.0,0.0001326,2]
[353331172,1739772632400,-663.4102387,0.00013504,2]
[353331174,1739772632409,-2788.13813512,0.00013598,2]
[353331176,1739772632418,-315.5402671,0.00013598,2]
[353331178,1739772632428,-783.13,0.00013605,2]
[353331179,1739772632438,-567.55,0.00013605,2]
[353331181,1739772632447,-1000.0,0.00013605,2]
[353331183,1739772632456,-1000.0,0.00013617,2]
[353331185,1739772632465,-175.13,0.00013627,2]
[353331187,1739772632474,-1000.0,0.0001364,2]
[353331188,1739772632483,-1000.0,0.00013649,2]
[353331190,1739772632493,-1000.0,0.0001365,2]
[353331192,1739772632502,-150.0,0.00013651,2]
[353331194,1739772632512,-2788.13813505,0.00013653,2]
[353331196,1739772632521,-150.0,0.00013654,2]
[353331198,1739772632530,-150.0,0.00013661,2]
[353331199,1739772632539,-500.0,0.0001367,2]
[353331201,1739772632549,-2000.0,0.0001367,2]
[353331203,1739772632559,-500.0,0.0001367,2]
[353331205,1739772632568,-200.0,0.0001367,2]
[353331207,1739772632577,-203.26118832,0.0001367,2]
[353331209,1739772632587,-150.0,0.00013671,2]
[353331210,1739772632596,-150.0,0.00013674,2]
[353331212,1739772632605,-150.0,0.00013676,2]
[353331214,1739772632614,-150.0,0.00013677,2]
[353331216,1739772632623,-150.0,0.00013677,2]
[353331218,1739772632633,-496.8888889,0.0001368,2]
[353331219,1739772632643,-150.0,0.00013681,2]
[353331221,1739772632652,-150.0,0.00013682,2]
[353331223,1739772632661,-150.0,0.00013682,2]
[353331225,1739772632671,-188.32141707,0.00013684,2]
[353331227,1739772632680,-150.0,0.00013685,2]
[353331229,1739772632690,-150.0,0.00013686,2]
[353331231,1739772632699,-150.0,0.00013689,2]
[353331233,1739772632710,-1000.0,0.0001369,2]
[353331235,1739772632720,-150.0,0.00013693,2]
[353331237,1739772632729,-398.49253957,0.00013693,2]
[353331239,1739772632738,-35950.97963233,0.00013695,2]
[353331240,1739772632747,-150.0,0.00013695,2]
[353331242,1739772632756,-500.0,0.00013697,2]
[353331244,1739772632766,-327.28594785,0.00013697,2]
[353331246,1739772632775,-325.30069563,0.00013697,2]
[353331248,1739772632785,-269.11659833,0.00013697,2]
[353331250,1739772632794,-150.0,0.00013697,2]
[353331251,1739772632803,-1626.17,0.00013698,2]
[353331253,1739772632812,-500.0,0.00013698,2]
[353331255,1739772632822,-501.14293736,0.00013698,2]
[353331257,1739772632831,-505.64736792,0.00013698,2]
[353331259,1739772632840,-509.13592463,0.00013698,2]
[353331261,1739772632849,-500.0,0.00013698,2]
[353331262,1739772632858,-515.31041447,0.00013698,2]
[353331264,1739772632868,-500.0,0.00013698,2]
[353331266,1739772632878,-500.0,0.00013698,2]
[353331268,1739772632887,-604.16,0.00013698,2]
[353331270,1739772632896,-500.0,0.00013698,2]
[353331272,1739772632906,-500.0,0.00013698,2]
[353331273,1739772632915,-500.0,0.00013698,2]
[353331274,1739772632924,-504.93208013,0.00013698,2]
[353331275,1739772632935,-500.0,0.00013698,2]
[353331276,1739772632944,-500.0,0.00013698,2]
[353331277,1739772632954,-500.0,0.00013698,2]
[353331278,1739772632963,-500.0,0.00013698,2]
[353331279,1739772632972,-500.0,0.00013698,2]
[353331280,1739772632982,-500.0,0.00013698,2]
[353331281,1739772632992,-500.0,0.00013698,2]
[353331282,1739772633001,-500.0,0.00013698,2]
[353331283,1739772633010,-500.0,0.00013698,2]
[353331284,1739772633020,-500.0,0.00013698,2]
[353331285,1739772633029,-500.0,0.00013698,2]
[353331286,1739772633038,-608.99630468,0.00013698,2]
[353331287,1739772633048,-500.0,0.00013698,2]
[353331288,1739772633057,-500.0,0.00013698,2]
[353331289,1739772633067,-500.0,0.00013698,2]
[353331290,1739772633076,-500.0,0.00013698,2]
[353331291,1739772633086,-500.0,0.00013698,2]
[353331292,1739772633095,-500.0,0.00013698,2]
[353331293,1739772633105,-528.83776017,0.00013698,2]
[353331294,1739772633115,-500.0,0.00013698,2]
[353331295,1739772633126,-500.0,0.00013698,2]
[353331296,1739772633135,-500.0,0.00013698,2]
[353331297,1739772633145,-500.0,0.00013698,2]
[353331298,1739772633155,-500.0,0.00013698,2]
[353331299,1739772633164,-500.0,0.00013698,2]
[353331300,1739772633173,-500.0,0.00013698,2]
[353331301,1739772633184,-500.0,0.00013698,2]
[353331302,1739772633193,-500.0,0.00013698,2]
[353331303,1739772633203,-500.0,0.00013698,2]
[353331304,1739772633212,-500.0,0.00013698,2]
[353331305,1739772633222,-500.0,0.00013698,2]
[353331306,1739772633231,-500.0,0.00013698,2]
[353331307,1739772633240,-500.0,0.00013698,2]
[353331308,1739772633250,-500.0,0.00013698,2]
[353331309,1739772633259,-500.0,0.00013698,2]
[353331310,1739772633269,-502.0878411,0.00013698,2]
[353331311,1739772633283,-500.0,0.00013698,2]
[353331312,1739772633292,-500.0,0.00013698,2]
[353331313,1739772633302,-500.0,0.00013698,2]
[353331314,1739772633311,-588.11922218,0.00013698,2]
[353331315,1739772633321,-519.54857214,0.00013698,2]
[353331316,1739772633331,-500.0,0.00013698,2]
[353331317,1739772633340,-500.0,0.00013698,2]
[353331318,1739772633350,-500.0,0.00013698,2]
[353331319,1739772633359,-506.55563473,0.00013698,2]
[353331320,1739772633369,-500.0,0.00013698,2]
[353331321,1739772633378,-500.0,0.00013698,2]
[353331322,1739772633388,-631.63757045,0.00013698,2]
[353331323,1739772633397,-563.0,0.00013698,2]
[353331324,1739772633407,-500.0,0.00013698,2]
[353331325,1739772633416,-500.0,0.00013698,2]
[353331326,1739772633426,-563.45,0.00013698,2]
[353331327,1739772633437,-515.31698727,0.00013698,2]
[353331328,1739772633447,-199.76282135,0.00013698,2]
[353331329,1739772633456,-527.85607581,0.00013698,2]
[353331330,1739772633466,-500.0,0.00013698,2]
[353331331,1739772633475,-500.0,0.00013698,2]
[353331332,1739772633485,-500.0,0.00013698,2]
[353331333,1739772633495,-500.0,0.00013698,2]
[353331334,1739772633504,-500.0,0.00013698,2]
[353331335,1739772633513,-500.0,0.00013698,2]
[353331336,1739772633523,-500.0,0.00013698,2]
[353331337,1739772633532,-500.0,0.00013698,2]
[353331338,1739772633542,-500.0,0.00013698,2]
[353331339,1739772633550,-500.0,0.00013698,2]
[353331340,1739772633560,-500.0,0.00013698,2]
[353331341,1739772633569,-500.0,0.00013698,2]
[353331342,1739772633578,-500.0,0.00013698,2]
[353331343,1739772633587,-503.79601889,0.00013698,2]
[353331344,1739772633597,-707.03,0.00013698,2]
[353331345,1739772633606,-500.0,0.00013698,2]
[353331346,1739772633615,-500.0,0.00013698,2]
[353331347,1739772633624,-500.0,0.00013698,2]
[353331348,1739772633633,-500.0,0.00013698,2]
[353331349,1739772633643,-596.67,0.00013698,2]
[353331350,1739772633652,-503.23652276,0.00013698,2]
[353331351,1739772633661,-500.0,0.00013698,2]
[353331352,1739772633671,-500.0,0.00013698,2]
[353331353,1739772633680,-500.0,0.00013698,2]
[353331354,1739772633690,-613.77,0.00013698,2]
[353331355,1739772633699,-500.0,0.00013698,2]
[353331356,1739772633709,-500.0,0.00013698,2]
[353331357,1739772633719,-511.14612242,0.00013698,2]
[353331358,1739772633728,-505.79586218,0.00013698,2]
[353331359,1739772633738,-875.9,0.00013698,2]
[353331360,1739772633748,-500.0,0.00013698,2]
[353331361,1739772633758,-500.0,0.00013698,2]
[353331362,1739772633767,-507.58171805,0.00013698,2]
[353331363,1739772633777,-507.11442425,0.00013698,2]
[353331364,1739772633787,-513.05745282,0.00013698,2]
[353331365,1739772633797,-601.48,0.00013698,2]
[353331366,1739772633806,-507.45306848,0.00013698,2]
[353331367,1739772633815,-500.0,0.00013698,2]
[353331368,1739772633825,-846.235757,0.00013698,2]
[353331369,1739772633835,-500.0,0.00013698,2]
[353331370,1739772633844,-500.0,0.00013698,2]
[353331371,1739772633853,-500.0,0.00013698,2]
[353331372,1739772633863,-163.912236,0.00013698,2]
[353331373,1739772633872,-504.51154939,0.00013698,2]
[353331374,1739772633881,-500.0,0.00013698,2]
[353331375,1739772633891,-500.0,0.00013698,2]
[353331376,1739772633901,-509.22602888,0.00013698,2]
[353331377,1739772633910,-500.0,0.00013698,2]
[353331378,1739772633919,-500.0,0.00013698,2]
[353331379,1739772633929,-500.0,0.00013698,2]
[353331380,1739772633938,-504.41110479,0.00013698,2]
[353331381,1739772633948,-540.1,0.00013698,2]
[353331382,1739772633958,-725.09,0.00013698,2]
[353331383,1739772633968,-500.0,0.00013698,2]
[353331384,1739772633977,-513.39825944,0.00013698,2]
[353331385,1739772633986,-500.0,0.00013698,2]
[353331386,1739772633996,-156.16997,0.00013698,2]
[353331387,1739772634005,-404.15351219,0.00013698,2]
[353331388,1739772634015,-500.0,0.00013698,2]
[353331389,1739772634024,-500.0,0.00013698,2]
[353331390,1739772634033,-564.84,0.00013698,2]
[353331391,1739772634042,-500.0,0.00013698,2]
[353331392,1739772634051,-500.0,0.00013698,2]
[353331393,1739772634060,-500.0,0.00013698,2]
[353331394,1739772634070,-500.0,0.00013698,2]
[353331395,1739772634079,-504.48183404,0.00013698,2]
[353331396,1739772634088,-500.0,0.00013698,2]
[353331397,1739772634097,-638.69,0.00013698,2]
[353331398,1739772634107,-500.0,0.00013698,2]
[353331399,1739772634116,-500.0,0.00013698,2]
[353331400,1739772634125,-536.13299092,0.00013698,2]
[353331401,1739772634134,-500.0,0.00013698,2]
[353331402,1739772634143,-510.10276031,0.00013698,2]
[353331403,1739772634153,-500.0,0.00013698,2]
[353331404,1739772634162,-1086.51,0.00013698,2]
[353331405,1739772634171,-500.0,0.00013698,2]
[353331406,1739772634180,-500.0,0.00013698,2]
[353331407,1739772634190,-500.0,0.00013698,2]
[353331408,1739772634199,-500.0,0.00013698,2]
[353331409,1739772634208,-500.0,0.00013698,2]
[353331410,1739772634217,-925.44,0.00013698,2]
[353331411,1739772634226,-500.0,0.00013698,2]
[353331412,1739772634235,-500.0,0.00013698,2]
[353331413,1739772634244,-500.0,0.00013698,2]
[353331414,1739772634253,-500.0,0.00013698,2]
[353331415,1739772634263,-1083.29,0.00013698,2]
[353331416,1739772634276,-500.0,0.00013698,2]
[353331417,1739772634286,-500.0,0.00013698,2]
[353331418,1739772634295,-478.2325652,0.00013698,2]
[353331419,1739772634777,-21.7674348,0.00013698,2]
[353331420,1739772634787,-773.87,0.00013698,2]
[353331421,1739772634796,-500.0,0.00013698,2]
[353331422,1739772634805,-864.98,0.00013698,2]
[353331423,1739772634815,-500.0,0.00013698,2]
[353331424,1739772634824,-500.0,0.00013698,2]
[353331425,1739772634833,-539.3825652,0.00013698,2]
[353331620,1739772639832,-1109.0,0.00012518,2]
[353331622,1739772639842,-141.9187418,0.00013698,2]
[353331624,1739772639851,-500.0,0.00013698,2]
[353331626,1739772639860,-500.0,0.00013698,2]
[353331628,1739772639870,-500.0,0.00013698,2]
[353331631,1739772639880,-520.4,0.00013698,2]
[353331633,1739772639889,-376.25242313,0.00013698,2]
[353331635,1739772639900,-123.74757687,0.00013698,2]
[353331637,1739772639910,-500.0,0.00013698,2]
[353331639,1739772639920,-500.0,0.00013698,2]
[353331641,1739772639929,-500.0,0.00013698,2]
[353331643,1739772639940,-524.7,0.00013698,2]
[353331645,1739772639950,-433.26924785,0.00013698,2]
[353331647,1739772639959,-500.0,0.00013698,2]
[353331649,1739772639969,-500.0,0.00013698,2]
[353331651,1739772639978,-500.0,0.00013698,2]
[353331653,1739772639988,-500.0,0.00013698,2]
[353331655,1739772639997,-645.93,0.00013698,2]
[353331657,1739772640006,-230.52324246,0.00013698,2]
[353331659,1739772640019,-269.47675754,0.00013698,2]
[353331661,1739772640029,-500.0,0.00013698,2]
[353331663,1739772640038,-32.40324246,0.00013698,2]
[353331680,1739772640185,-467.59675754,0.00013698,2]
[353331682,1739772640194,-500.0,0.00013698,2]
[353331683,1739772640204,-500.0,0.00013698,2]
[353331685,1739772640213,-500.0,0.00013698,2]
[353331688,1739772640223,-500.0,0.00013698,2]
[353331689,1739772640232,-500.0,0.00013698,2]
[353331691,1739772640241,-500.0,0.00013698,2]
[353331693,1739772640251,-500.0,0.00013698,2]
[353331695,1739772640260,-500.0,0.00013698,2]
[353331697,1739772640269,-506.52008841,0.00013698,2]
[353331699,1739772640280,-500.0,0.00013698,2]
[353331701,1739772640289,-500.0,0.00013698,2]